[Event "Titled Tuesday Blitz August 1 Late 2023"]
[White "Sanhueza, Cristian"]
[Black "Hambleton, Aman"]
[WhiteFideId "116815"]
[BlackFideId "2606577"]
[WhiteElo "2482"]
[BlackElo "2777"]
[Result "0-1"]
[Round "9"]
[TimeControl "180+1"]
[Date "2023.08.01"]
[WhiteClock "0:00:01"]
[BlackClock "0:00:02"]
[Board "56"]

1. d4 {[%clk 0:03:00]}  e5 {[%clk 0:02:43]} 2. dxe5 {[%clk 0:03:00]}  Nc6 {[%clk 0:02:40]} 3. Bf4 {[%clk 0:03:00]}  Qe7 {[%clk 0:02:41]} 4. Nf3 {[%clk 0:02:57]}  Qb4+ {[%clk 0:02:40]} 5. Bd2 {[%clk 0:02:58]}  Qxb2 {[%clk 0:02:41]} 6. Nc3 {[%clk 0:02:57]}  Bb4 {[%clk 0:02:41]} 7. Rb1 {[%clk 0:02:57]}  Qxc3 {[%clk 0:02:41]} 8. Bxc3 {[%clk 0:02:55]}  Bxc3+ {[%clk 0:02:42]} 9. Nd2 {[%clk 0:02:55]}  Nxe5 {[%clk 0:02:43]} 10. e3 {[%clk 0:02:48]}  Nf6 {[%clk 0:02:43]} 11. Rb3 {[%clk 0:02:46]}  Ba5 {[%clk 0:02:41]} 12. Rb5 {[%clk 0:02:46]}  Nc6 {[%clk 0:02:39]} 13. Bd3 {[%clk 0:02:42]}  O-O {[%clk 0:02:38]} 14. O-O {[%clk 0:02:42]}  a6 {[%clk 0:02:39]} 15. Rg5 {[%clk 0:02:38]}  h6 {[%clk 0:02:39]} 16. Rg3 {[%clk 0:02:37]}  Bc3 {[%clk 0:02:29]} 17. Ne4 {[%clk 0:02:33]}  Be5 {[%clk 0:02:14]} 18. f4 {[%clk 0:02:24]}  Nxe4 {[%clk 0:02:14]} 19. Bxe4 {[%clk 0:02:25]}  Bf6 {[%clk 0:02:15]} 20. Qh5 {[%clk 0:02:23]}  Re8 {[%clk 0:01:08]} 21. Qxh6 {[%clk 0:02:17]}  Kf8 {[%clk 0:01:04]} 22. Qh8+ {[%clk 0:01:44]}  Ke7 {[%clk 0:01:03]} 23. Qh5 {[%clk 0:01:37]}  d6 {[%clk 0:00:56]} 24. Re1 {[%clk 0:01:20]}  g6 {[%clk 0:00:28]} 25. Qf3 {[%clk 0:00:48]}  Bd7 {[%clk 0:00:20]} 26. Bxc6 {[%clk 0:00:26]}  Bxc6 {[%clk 0:00:19]} 27. Qg4 {[%clk 0:00:26]}  Bd7 {[%clk 0:00:16]} 28. Qf3 {[%clk 0:00:24]}  Bc6 {[%clk 0:00:12]} 29. e4 {[%clk 0:00:23]}  Bh4 {[%clk 0:00:11]} 30. Qd3 {[%clk 0:00:22]}  Rad8 {[%clk 0:00:02]} 31. e5 {[%clk 0:00:21]}  Bxg3 {[%clk 0:00:02]} 32. exd6+ {[%clk 0:00:21]}  Kd7 {[%clk 0:00:02]} 33. hxg3 {[%clk 0:00:21]}  Rxe1+ {[%clk 0:00:02]} 34. Kf2 {[%clk 0:00:22]}  Re6 {[%clk 0:00:02]} 35. dxc7+ {[%clk 0:00:20]}  Kxc7 {[%clk 0:00:03]} 36. Qc4 {[%clk 0:00:20]}  Red6 {[%clk 0:00:03]} 37. Qxf7+ {[%clk 0:00:20]}  R8d7 {[%clk 0:00:04]} 38. Qc4 {[%clk 0:00:20]}  Rd2+ {[%clk 0:00:05]} 39. Ke1 {[%clk 0:00:18]}  Rxg2 {[%clk 0:00:06]} 40. Qc5 {[%clk 0:00:17]}  Rd6 {[%clk 0:00:05]} 41. Qe5 {[%clk 0:00:16]}  Rxc2 {[%clk 0:00:04]} 42. Qe7+ {[%clk 0:00:13]}  Bd7 {[%clk 0:00:04]} 43. Qg7 {[%clk 0:00:07]}  Rdd2 {[%clk 0:00:03]} 44. Qe5+ {[%clk 0:00:07]}  Kc6 {[%clk 0:00:03]} 45. Qe4+ {[%clk 0:00:07]}  Kd6 {[%clk 0:00:04]} 46. Qxg6+ {[%clk 0:00:07]}  Kc7 {[%clk 0:00:03]} 47. Qg7 {[%clk 0:00:06]}  Re2+ {[%clk 0:00:02]} 48. Kd1 {[%clk 0:00:05]}  Rcd2+ {[%clk 0:00:03]} 49. Kc1 {[%clk 0:00:05]}  Rxa2 {[%clk 0:00:04]} 50. Kb1 {[%clk 0:00:04]}  Rab2+ {[%clk 0:00:03]} 51. Kc1 {[%clk 0:00:03]}  Ra2 {[%clk 0:00:03]} 52. Kb1 {[%clk 0:00:03]}  b6 {[%clk 0:00:02]} 53. g4 {[%clk 0:00:02]}  a5 {[%clk 0:00:02]} 54. g5 {[%clk 0:00:02]}  Rad2 {[%clk 0:00:02]} 55. Kc1 {[%clk 0:00:02]}  Rc2+ {[%clk 0:00:02]} 56. Kb1 {[%clk 0:00:02]}  Rg2 {[%clk 0:00:02]} 57. g6 {[%clk 0:00:02]}  Rcf2 {[%clk 0:00:02]} 58. Qe5+ {[%clk 0:00:02]}  Kb7 {[%clk 0:00:03]} 59. Qe4+ {[%clk 0:00:03]}  Ka7 {[%clk 0:00:02]} 60. Qe7 {[%clk 0:00:01]}  Rf1+ {[%clk 0:00:02]} 0-1


[Site "https://www.chess.com"]

[Event "Titled Tuesday Blitz August 1 Late 2023"]
[White "Kanyamarala, Tarun"]
[Black "Haydon, David L"]
[WhiteFideId "45004714"]
[BlackFideId "415405"]
[WhiteElo "2476"]
[BlackElo "2641"]
[Result "1-0"]
[Round "9"]
[TimeControl "180+1"]
[Date "2023.08.01"]
[WhiteClock "0:01:17"]
[BlackClock "0:01:01"]
[Board "57"]

1. d4 {[%clk 0:03:00]}  c6 {[%clk 0:02:58]} 2. Nc3 {[%clk 0:02:56]}  d5 {[%clk 0:02:53]} 3. Bf4 {[%clk 0:02:57]}  Nf6 {[%clk 0:02:48]} 4. e3 {[%clk 0:02:57]}  Bf5 {[%clk 0:02:47]} 5. Bd3 {[%clk 0:02:58]}  e6 {[%clk 0:02:47]} 6. Nge2 {[%clk 0:02:57]}  Bd6 {[%clk 0:02:47]} 7. f3 {[%clk 0:02:57]}  Bg6 {[%clk 0:02:44]} 8. h4 {[%clk 0:02:54]}  Qc7 {[%clk 0:02:42]} 9. g4 {[%clk 0:02:51]}  Bxd3 {[%clk 0:02:41]} 10. Qxd3 {[%clk 0:02:49]}  Bxf4 {[%clk 0:02:41]} 11. Nxf4 {[%clk 0:02:47]}  Nbd7 {[%clk 0:02:39]} 12. g5 {[%clk 0:02:47]}  Ng8 {[%clk 0:02:38]} 13. h5 {[%clk 0:02:47]}  Ne7 {[%clk 0:02:36]} 14. O-O-O {[%clk 0:02:43]}  O-O-O {[%clk 0:02:35]} 15. g6 {[%clk 0:02:43]}  e5 {[%clk 0:02:30]} 16. Nfxd5 {[%clk 0:02:38]}  Nxd5 {[%clk 0:02:26]} 17. Nxd5 {[%clk 0:02:38]}  cxd5 {[%clk 0:02:26]} 18. gxh7 {[%clk 0:02:34]}  Nf6 {[%clk 0:02:21]} 19. Qf5+ {[%clk 0:02:33]}  Qd7 {[%clk 0:02:18]} 20. Qxe5 {[%clk 0:02:32]}  Rxh7 {[%clk 0:02:08]} 21. Rd3 {[%clk 0:02:31]}  Ne8 {[%clk 0:02:04]} 22. Rc3+ {[%clk 0:02:27]}  Nc7 {[%clk 0:02:04]} 23. Rxc7+ {[%clk 0:02:24]}  Qxc7 {[%clk 0:02:04]} 24. Qf5+ {[%clk 0:02:24]}  Qd7 {[%clk 0:02:00]} 25. Qxh7 {[%clk 0:02:22]}  f6 {[%clk 0:01:52]} 26. Rg1 {[%clk 0:02:19]}  Qe6 {[%clk 0:01:50]} 27. Kd2 {[%clk 0:02:18]}  Re8 {[%clk 0:01:48]} 28. Re1 {[%clk 0:02:09]}  Re7 {[%clk 0:01:47]} 29. e4 {[%clk 0:01:59]}  Qb6 {[%clk 0:01:36]} 30. Qg8+ {[%clk 0:01:53]}  Kc7 {[%clk 0:01:36]} 31. Qxd5 {[%clk 0:01:53]}  Qb4+ {[%clk 0:01:34]} 32. Ke2 {[%clk 0:01:50]}  Qxb2 {[%clk 0:01:31]} 33. Qc5+ {[%clk 0:01:47]}  Kd8 {[%clk 0:01:30]} 34. h6 {[%clk 0:01:45]}  g5 {[%clk 0:01:07]} 35. Rh1 {[%clk 0:01:34]}  Rc7 {[%clk 0:01:04]} 36. Qd5+ {[%clk 0:01:25]}  Kc8 {[%clk 0:01:02]} 37. Qg8+ {[%clk 0:01:19]}  Kd7 {[%clk 0:01:02]} 38. Qf7+ {[%clk 0:01:17]}  Kc8 {[%clk 0:01:01]} 39. Qe8# {[%clk 0:01:17]} 1-0


[Site "https://www.chess.com"]

[Event "Titled Tuesday Blitz August 1 Late 2023"]
[White "Sathish, Pranav"]
[Black "Karwowski, Kacper"]
[WhiteFideId "30967538"]
[BlackFideId "1126032"]
[WhiteElo "2441"]
[BlackElo "2550"]
[Result "1-0"]
[Round "9"]
[TimeControl "180+1"]
[Date "2023.08.01"]
[WhiteClock "0:00:09"]
[BlackClock "0:00:00"]
[Board "62"]

1. Nf3 {[%clk 0:03:00]}  Nf6 {[%clk 0:02:58]} 2. b3 {[%clk 0:03:00]}  g6 {[%clk 0:02:52]} 3. g3 {[%clk 0:02:59]}  Bg7 {[%clk 0:02:52]} 4. Bb2 {[%clk 0:02:58]}  O-O {[%clk 0:02:53]} 5. Bg2 {[%clk 0:02:58]}  d5 {[%clk 0:02:53]} 6. c4 {[%clk 0:02:57]}  c6 {[%clk 0:02:53]} 7. O-O {[%clk 0:02:57]}  a5 {[%clk 0:02:48]} 8. Nc3 {[%clk 0:02:56]}  Na6 {[%clk 0:02:45]} 9. d4 {[%clk 0:02:41]}  Bf5 {[%clk 0:02:29]} 10. Rc1 {[%clk 0:02:40]}  Ne4 {[%clk 0:02:19]} 11. Nxe4 {[%clk 0:02:21]}  Bxe4 {[%clk 0:02:20]} 12. e3 {[%clk 0:02:06]}  Qd7 {[%clk 0:02:06]} 13. Ne1 {[%clk 0:01:59]}  Bxg2 {[%clk 0:02:02]} 14. Kxg2 {[%clk 0:01:56]}  Rfe8 {[%clk 0:02:01]} 15. Nf3 {[%clk 0:01:56]}  b5 {[%clk 0:01:50]} 16. Qe2 {[%clk 0:01:43]}  a4 {[%clk 0:01:43]} 17. c5 {[%clk 0:01:32]}  axb3 {[%clk 0:01:39]} 18. axb3 {[%clk 0:01:31]}  Nc7 {[%clk 0:01:36]} 19. Ra1 {[%clk 0:01:31]}  Rxa1 {[%clk 0:01:35]} 20. Rxa1 {[%clk 0:01:30]}  Ra8 {[%clk 0:01:36]} 21. Rxa8+ {[%clk 0:01:28]}  Nxa8 {[%clk 0:01:37]} 22. Bc3 {[%clk 0:01:24]}  Qa7 {[%clk 0:01:26]} 23. Qb2 {[%clk 0:01:23]}  Nc7 {[%clk 0:01:23]} 24. Ne1 {[%clk 0:01:23]}  Ne6 {[%clk 0:01:13]} 25. Nd3 {[%clk 0:01:22]}  h5 {[%clk 0:01:11]} 26. h4 {[%clk 0:01:22]}  Bf6 {[%clk 0:01:09]} 27. Nb4 {[%clk 0:01:22]}  Nd8 {[%clk 0:01:06]} 28. Kf1 {[%clk 0:01:11]}  e6 {[%clk 0:01:01]} 29. Ke2 {[%clk 0:01:10]}  Kf8 {[%clk 0:01:01]} 30. Kd2 {[%clk 0:01:09]}  Ke8 {[%clk 0:01:01]} 31. Kc2 {[%clk 0:01:06]}  Kd7 {[%clk 0:01:01]} 32. Kb1 {[%clk 0:01:06]}  Nb7 {[%clk 0:01:00]} 33. Qe2 {[%clk 0:01:01]}  Nxc5 {[%clk 0:00:54]} 34. Qc2 {[%clk 0:00:36]}  Ne4 {[%clk 0:00:48]} 35. Bb2 {[%clk 0:00:35]}  Qb7 {[%clk 0:00:43]} 36. Nd3 {[%clk 0:00:32]}  b4 {[%clk 0:00:25]} 37. f3 {[%clk 0:00:27]}  Qc7 {[%clk 0:00:19]} 38. fxe4 {[%clk 0:00:26]}  Qxg3 {[%clk 0:00:20]} 39. exd5 {[%clk 0:00:24]}  cxd5 {[%clk 0:00:20]} 40. Nxb4 {[%clk 0:00:24]}  Be7 {[%clk 0:00:15]} 41. Qc6+ {[%clk 0:00:19]}  Kd8 {[%clk 0:00:15]} 42. Qa8+ {[%clk 0:00:18]}  Kd7 {[%clk 0:00:15]} 43. Nd3 {[%clk 0:00:18]}  Bd6 {[%clk 0:00:09]} 44. Qb7+ {[%clk 0:00:17]}  Ke8 {[%clk 0:00:09]} 45. Nc5 {[%clk 0:00:16]}  Kf8 {[%clk 0:00:03]} 46. Qc8+ {[%clk 0:00:12]}  Kg7 {[%clk 0:00:03]} 47. Qd7 {[%clk 0:00:12]}  Kf6 {[%clk 0:00:01]} 48. e4 {[%clk 0:00:11]}  Bxc5 {[%clk 0:00:00]} 49. dxc5+ {[%clk 0:00:09]} 1-0


[Site "https://www.chess.com"]

[Event "Titled Tuesday Blitz August 1 Late 2023"]
[White "FuenfgegenWilly"]
[Black "Berezin, Viktor"]
[BlackFideId "14107872"]
[WhiteElo "2436"]
[BlackElo "2528"]
[Result "0-1"]
[Round "9"]
[TimeControl "180+1"]
[Date "2023.08.01"]
[WhiteClock "0:00:00"]
[BlackClock "0:00:11"]
[Board "63"]

1. Nf3 {[%clk 0:03:00]}  g6 {[%clk 0:02:57]} 2. c4 {[%clk 0:02:53]}  Bg7 {[%clk 0:02:58]} 3. Nc3 {[%clk 0:02:53]}  d6 {[%clk 0:02:57]} 4. d4 {[%clk 0:02:49]}  Nf6 {[%clk 0:02:57]} 5. b3 {[%clk 0:02:46]}  O-O {[%clk 0:02:57]} 6. Bb2 {[%clk 0:02:46]}  Nc6 {[%clk 0:02:54]} 7. g3 {[%clk 0:02:46]}  a6 {[%clk 0:02:46]} 8. Bg2 {[%clk 0:02:46]}  Rb8 {[%clk 0:02:46]} 9. O-O {[%clk 0:02:43]}  b5 {[%clk 0:02:45]} 10. cxb5 {[%clk 0:02:35]}  axb5 {[%clk 0:02:46]} 11. Rc1 {[%clk 0:02:35]}  b4 {[%clk 0:02:43]} 12. Na4 {[%clk 0:02:34]}  Na7 {[%clk 0:02:43]} 13. Qc2 {[%clk 0:02:32]}  Nb5 {[%clk 0:02:42]} 14. e4 {[%clk 0:02:31]}  Bb7 {[%clk 0:02:38]} 15. Nd2 {[%clk 0:02:26]}  Nd7 {[%clk 0:02:25]} 16. Qc4 {[%clk 0:02:24]}  Ba6 {[%clk 0:02:16]} 17. Qc6 {[%clk 0:02:20]}  Ra8 {[%clk 0:02:07]} 18. e5 {[%clk 0:02:10]}  Ra7 {[%clk 0:01:49]} 19. Nc4 {[%clk 0:02:00]}  Nb8 {[%clk 0:01:39]} 20. Qf3 {[%clk 0:01:58]}  Bb7 {[%clk 0:01:29]} 21. Qe2 {[%clk 0:01:58]}  Bxg2 {[%clk 0:01:26]} 22. Kxg2 {[%clk 0:01:59]}  Qd7 {[%clk 0:01:21]} 23. Rfd1 {[%clk 0:01:56]}  c6 {[%clk 0:01:18]} 24. d5 {[%clk 0:01:52]}  cxd5 {[%clk 0:01:17]} 25. Rxd5 {[%clk 0:01:52]}  Qb7 {[%clk 0:01:11]} 26. Qf3 {[%clk 0:01:52]}  e6 {[%clk 0:01:02]} 27. Nxd6 {[%clk 0:01:39]}  Qxd5 {[%clk 0:00:54]} 28. Qxd5 {[%clk 0:01:39]}  exd5 {[%clk 0:00:55]} 29. Nxb5 {[%clk 0:01:40]}  Re7 {[%clk 0:00:51]} 30. Bd4 {[%clk 0:01:30]}  Rfe8 {[%clk 0:00:46]} 31. f4 {[%clk 0:01:28]}  g5 {[%clk 0:00:38]} 32. Bc5 {[%clk 0:01:28]}  Rd7 {[%clk 0:00:35]} 33. Bxb4 {[%clk 0:01:25]}  gxf4 {[%clk 0:00:33]} 34. gxf4 {[%clk 0:01:25]}  f6 {[%clk 0:00:34]} 35. Nd6 {[%clk 0:01:24]}  Red8 {[%clk 0:00:31]} 36. Bc3 {[%clk 0:01:15]}  fxe5 {[%clk 0:00:30]} 37. fxe5 {[%clk 0:01:16]}  d4 {[%clk 0:00:27]} 38. Bxd4 {[%clk 0:01:12]}  Rxd6 {[%clk 0:00:27]} 39. exd6 {[%clk 0:01:07]}  Bxd4 {[%clk 0:00:28]} 40. Rc4 {[%clk 0:00:55]}  Bf6 {[%clk 0:00:27]} 41. Nc5 {[%clk 0:00:48]}  Kf7 {[%clk 0:00:26]} 42. Ne4 {[%clk 0:00:47]}  Be5 {[%clk 0:00:26]} 43. Rc7+ {[%clk 0:00:47]}  Nd7 {[%clk 0:00:26]} 44. a4 {[%clk 0:00:28]}  Ke6 {[%clk 0:00:25]} 45. a5 {[%clk 0:00:15]}  Kd5 {[%clk 0:00:25]} 46. Nc3+ {[%clk 0:00:09]}  Kxd6 {[%clk 0:00:24]} 47. Rc4 {[%clk 0:00:09]}  Ra8 {[%clk 0:00:22]} 48. Ne4+ {[%clk 0:00:08]}  Kd5 {[%clk 0:00:22]} 49. Ra4 {[%clk 0:00:06]}  Bc7 {[%clk 0:00:17]} 50. a6 {[%clk 0:00:06]}  Nb6 {[%clk 0:00:17]} 51. Rb4 {[%clk 0:00:03]}  Rxa6 {[%clk 0:00:16]} 52. Ng3 {[%clk 0:00:03]}  Ra2+ {[%clk 0:00:15]} 53. Kh3 {[%clk 0:00:04]}  Kc5 {[%clk 0:00:14]} 54. Rh4 {[%clk 0:00:03]}  Rb2 {[%clk 0:00:12]} 55. Rh5+ {[%clk 0:00:03]}  Nd5 {[%clk 0:00:12]} 56. Rxh7 {[%clk 0:00:04]}  Rxb3 {[%clk 0:00:12]} 57. Kg4 {[%clk 0:00:00]}  Nf6+ {[%clk 0:00:11]} 0-1


[Site "https://www.chess.com"]

[Event "Titled Tuesday Blitz August 1 Late 2023"]
[White "Fiorito, Francisco"]
[Black "KrokerGuy"]
[WhiteFideId "180165"]
[WhiteElo "2524"]
[BlackElo "2434"]
[Result "1/2-1/2"]
[Round "9"]
[TimeControl "180+1"]
[Date "2023.08.01"]
[WhiteClock "0:00:07"]
[BlackClock "0:00:03"]
[Board "64"]

1. a3 {[%clk 0:03:00]}  Nf6 {[%clk 0:02:56]} 2. b4 {[%clk 0:03:00]}  g6 {[%clk 0:02:49]} 3. Bb2 {[%clk 0:03:00]}  Bg7 {[%clk 0:02:50]} 4. c4 {[%clk 0:03:00]}  a5 {[%clk 0:02:49]} 5. Nf3 {[%clk 0:02:58]}  O-O {[%clk 0:02:49]} 6. e3 {[%clk 0:02:57]}  b6 {[%clk 0:02:45]} 7. Nc3 {[%clk 0:02:56]}  Bb7 {[%clk 0:02:45]} 8. d4 {[%clk 0:02:56]}  Ne4 {[%clk 0:02:40]} 9. Bd3 {[%clk 0:02:54]}  Nxc3 {[%clk 0:02:37]} 10. Bxc3 {[%clk 0:02:55]}  c5 {[%clk 0:02:29]} 11. Rb1 {[%clk 0:02:43]}  axb4 {[%clk 0:02:28]} 12. axb4 {[%clk 0:02:43]}  Qc7 {[%clk 0:02:07]} 13. Rb3 {[%clk 0:02:26]}  d5 {[%clk 0:01:52]} 14. bxc5 {[%clk 0:02:20]}  bxc5 {[%clk 0:01:47]} 15. dxc5 {[%clk 0:01:53]}  Bxc3+ {[%clk 0:01:09]} 16. Rxc3 {[%clk 0:01:52]}  Qxc5 {[%clk 0:01:03]} 17. O-O {[%clk 0:01:53]}  Nd7 {[%clk 0:00:56]} 18. Qc2 {[%clk 0:01:29]}  Rfc8 {[%clk 0:00:48]} 19. Rc1 {[%clk 0:01:26]}  Nf6 {[%clk 0:00:43]} 20. Qb2 {[%clk 0:01:19]}  Bc6 {[%clk 0:00:29]} 21. cxd5 {[%clk 0:01:14]}  Qxd5 {[%clk 0:00:30]} 22. Bc4 {[%clk 0:01:07]}  Qd6 {[%clk 0:00:23]} 23. Rd3 {[%clk 0:00:45]}  Qb8 {[%clk 0:00:23]} 24. Rb3 {[%clk 0:00:20]}  Qd6 {[%clk 0:00:09]} 25. Rd3 {[%clk 0:00:16]}  Qb8 {[%clk 0:00:09]} 26. Qe2 {[%clk 0:00:07]}  Be4 {[%clk 0:00:05]} 27. Rdc3 {[%clk 0:00:07]}  Rd8 {[%clk 0:00:05]} 28. h3 {[%clk 0:00:06]}  Qb7 {[%clk 0:00:05]} 29. Ng5 {[%clk 0:00:04]}  Bd5 {[%clk 0:00:05]} 30. Bxd5 {[%clk 0:00:04]}  Nxd5 {[%clk 0:00:05]} 31. Rc5 {[%clk 0:00:04]}  h6 {[%clk 0:00:04]} 32. Ne4 {[%clk 0:00:03]}  Nb6 {[%clk 0:00:03]} 33. Qf3 {[%clk 0:00:03]}  Qd7 {[%clk 0:00:02]} 34. Rc7 {[%clk 0:00:03]}  Qe6 {[%clk 0:00:02]} 35. Nc5 {[%clk 0:00:03]}  Qd5 {[%clk 0:00:02]} 36. Qg3 {[%clk 0:00:01]}  Qd6 {[%clk 0:00:02]} 37. Nb7 {[%clk 0:00:01]}  Qxg3 {[%clk 0:00:02]} 38. fxg3 {[%clk 0:00:02]}  Rdc8 {[%clk 0:00:02]} 39. e4 {[%clk 0:00:01]}  Rxc7 {[%clk 0:00:02]} 40. Rxc7 {[%clk 0:00:02]}  Kf8 {[%clk 0:00:02]} 41. Nc5 {[%clk 0:00:02]}  Rc8 {[%clk 0:00:03]} 42. Nd7+ {[%clk 0:00:02]}  Ke8 {[%clk 0:00:03]} 43. Rxc8+ {[%clk 0:00:02]}  Nxc8 {[%clk 0:00:04]} 44. Ne5 {[%clk 0:00:02]}  Nd6 {[%clk 0:00:04]} 45. g4 {[%clk 0:00:02]}  Nxe4 {[%clk 0:00:04]} 46. Kh2 {[%clk 0:00:02]}  Kf8 {[%clk 0:00:03]} 47. g3 {[%clk 0:00:03]}  Kg7 {[%clk 0:00:03]} 48. Kg2 {[%clk 0:00:03]}  f6 {[%clk 0:00:04]} 49. Nc6 {[%clk 0:00:03]}  Kf7 {[%clk 0:00:04]} 50. Kf3 {[%clk 0:00:03]}  Ng5+ {[%clk 0:00:05]} 51. Kg2 {[%clk 0:00:03]}  e5 {[%clk 0:00:05]} 52. h4 {[%clk 0:00:03]}  Ne4 {[%clk 0:00:05]} 53. Kf3 {[%clk 0:00:04]}  Nd6 {[%clk 0:00:05]} 54. Nd8+ {[%clk 0:00:03]}  Ke7 {[%clk 0:00:05]} 55. Nc6+ {[%clk 0:00:04]}  Kd7 {[%clk 0:00:06]} 56. Nb4 {[%clk 0:00:04]}  Ke6 {[%clk 0:00:06]} 57. Nc6 {[%clk 0:00:05]}  Nb5 {[%clk 0:00:04]} 58. Nd8+ {[%clk 0:00:04]}  Kd7 {[%clk 0:00:04]} 59. Nf7 {[%clk 0:00:05]}  h5 {[%clk 0:00:03]} 60. g5 {[%clk 0:00:04]}  fxg5 {[%clk 0:00:02]} 61. Nxe5+ {[%clk 0:00:04]}  Ke6 {[%clk 0:00:02]} 62. Nxg6 {[%clk 0:00:04]}  Kf6 {[%clk 0:00:01]} 63. Nf8 {[%clk 0:00:03]}  g4+ {[%clk 0:00:01]} 64. Kf4 {[%clk 0:00:03]}  Ke7 {[%clk 0:00:01]} 65. Ng6+ {[%clk 0:00:03]}  Kf6 {[%clk 0:00:02]} 66. Ne5 {[%clk 0:00:04]}  Nd4 {[%clk 0:00:02]} 67. Nd7+ {[%clk 0:00:04]}  Ke7 {[%clk 0:00:02]} 68. Ne5 {[%clk 0:00:02]}  Ne2+ {[%clk 0:00:02]} 69. Kg5 {[%clk 0:00:03]}  Nxg3 {[%clk 0:00:03]} 70. Ng6+ {[%clk 0:00:04]}  Kf7 {[%clk 0:00:02]} 71. Nf4 {[%clk 0:00:05]}  Ne4+ {[%clk 0:00:02]} 72. Kxh5 {[%clk 0:00:05]}  g3 {[%clk 0:00:03]} 73. Kg4 {[%clk 0:00:05]}  Kf6 {[%clk 0:00:03]} 74. Nh5+ {[%clk 0:00:05]}  Kg6 {[%clk 0:00:03]} 75. Nf4+ {[%clk 0:00:06]}  Kf6 {[%clk 0:00:03]} 76. h5 {[%clk 0:00:07]}  Kg7 {[%clk 0:00:02]} 77. Ne6+ {[%clk 0:00:05]}  Kh6 {[%clk 0:00:02]} 78. Nf4 {[%clk 0:00:05]}  Nf6+ {[%clk 0:00:02]} 79. Kh4 {[%clk 0:00:05]}  Nxh5 {[%clk 0:00:02]} 80. Ng2 {[%clk 0:00:05]}  Nf6 {[%clk 0:00:02]} 81. Kh3 {[%clk 0:00:05]}  Kg5 {[%clk 0:00:03]} 82. Ne3 {[%clk 0:00:05]}  Nh5 {[%clk 0:00:03]} 83. Ng2 {[%clk 0:00:06]}  Nf4+ {[%clk 0:00:03]} 84. Kxg3 {[%clk 0:00:07]} 1/2-1/2


[Site "https://www.chess.com"]

[Event "Titled Tuesday Blitz August 1 Late 2023"]
[White "Chor, Kevin"]
[Black "Vega Gutierrez, Sabrina"]
[WhiteFideId "2090740"]
[BlackFideId "2219026"]
[WhiteElo "2518"]
[BlackElo "2435"]
[Result "0-1"]
[Round "9"]
[TimeControl "180+1"]
[Date "2023.08.01"]
[WhiteClock "0:00:04"]
[BlackClock "0:01:00"]
[Board "65"]

1. e4 {[%clk 0:03:00]}  c5 {[%clk 0:02:59]} 2. Nf3 {[%clk 0:03:01]}  Nc6 {[%clk 0:03:00]} 3. d4 {[%clk 0:03:01]}  cxd4 {[%clk 0:03:00]} 4. Nxd4 {[%clk 0:03:02]}  Nf6 {[%clk 0:03:01]} 5. Nc3 {[%clk 0:03:02]}  e5 {[%clk 0:03:01]} 6. Ndb5 {[%clk 0:03:02]}  d6 {[%clk 0:03:01]} 7. Bg5 {[%clk 0:03:01]}  a6 {[%clk 0:03:01]} 8. Na3 {[%clk 0:03:02]}  b5 {[%clk 0:03:02]} 9. Nd5 {[%clk 0:03:03]}  Be7 {[%clk 0:03:02]} 10. Bxf6 {[%clk 0:03:03]}  Bxf6 {[%clk 0:03:02]} 11. c3 {[%clk 0:03:04]}  Ne7 {[%clk 0:03:03]} 12. Nxf6+ {[%clk 0:02:54]}  gxf6 {[%clk 0:03:04]} 13. g3 {[%clk 0:02:52]}  Bb7 {[%clk 0:03:03]} 14. Bg2 {[%clk 0:02:46]}  f5 {[%clk 0:03:04]} 15. Qe2 {[%clk 0:02:46]}  fxe4 {[%clk 0:02:57]} 16. Bxe4 {[%clk 0:02:45]}  d5 {[%clk 0:02:57]} 17. Bg2 {[%clk 0:02:45]}  Qc7 {[%clk 0:02:55]} 18. O-O {[%clk 0:02:39]}  O-O {[%clk 0:02:55]} 19. Rfe1 {[%clk 0:02:34]}  Ng6 {[%clk 0:02:54]} 20. Nc2 {[%clk 0:02:31]}  e4 {[%clk 0:02:52]} 21. Nd4 {[%clk 0:02:28]}  Ne5 {[%clk 0:02:51]} 22. Qh5 {[%clk 0:02:20]}  f5 {[%clk 0:02:36]} 23. Ne6 {[%clk 0:01:51]}  Qf7 {[%clk 0:02:30]} 24. Qg5+ {[%clk 0:01:51]}  Kh8 {[%clk 0:02:25]} 25. Nxf8 {[%clk 0:01:46]}  Rxf8 {[%clk 0:02:26]} 26. Rad1 {[%clk 0:01:43]}  Ng6 {[%clk 0:02:16]} 27. h4 {[%clk 0:01:34]}  f4 {[%clk 0:02:13]} 28. h5 {[%clk 0:01:31]}  fxg3 {[%clk 0:02:12]} 29. fxg3 {[%clk 0:01:32]}  Qf2+ {[%clk 0:02:01]} 30. Kh1 {[%clk 0:01:26]}  Rf5 {[%clk 0:01:58]} 31. Qg4 {[%clk 0:00:51]}  Ne5 {[%clk 0:01:53]} 32. Qh3 {[%clk 0:00:51]}  Bc8 {[%clk 0:01:30]} 33. Rf1 {[%clk 0:00:46]}  Qe2 {[%clk 0:01:18]} 34. Rxf5 {[%clk 0:00:28]}  Qxd1+ {[%clk 0:01:16]} 35. Rf1 {[%clk 0:00:19]}  Qxf1+ {[%clk 0:01:16]} 36. Bxf1 {[%clk 0:00:20]}  Bxh3 {[%clk 0:01:16]} 37. Bxh3 {[%clk 0:00:21]}  Nd3 {[%clk 0:01:10]} 38. Kg2 {[%clk 0:00:15]}  Nxb2 {[%clk 0:01:06]} 39. Be6 {[%clk 0:00:15]}  Na4 {[%clk 0:01:06]} 40. Bxd5 {[%clk 0:00:14]}  Nxc3 {[%clk 0:01:06]} 41. Bb7 {[%clk 0:00:15]}  a5 {[%clk 0:01:06]} 42. Kf2 {[%clk 0:00:15]}  b4 {[%clk 0:01:05]} 43. Ke3 {[%clk 0:00:13]}  Kg7 {[%clk 0:01:05]} 44. g4 {[%clk 0:00:08]}  h6 {[%clk 0:01:00]} 45. Kf4 {[%clk 0:00:08]}  Kf6 {[%clk 0:01:00]} 46. Ba6 {[%clk 0:00:06]}  Nxa2 {[%clk 0:00:59]} 47. Kxe4 {[%clk 0:00:06]}  Kg5 {[%clk 0:01:00]} 48. Kf3 {[%clk 0:00:06]}  Nc3 {[%clk 0:01:00]} 49. Bc4 {[%clk 0:00:04]}  a4 {[%clk 0:01:00]} 0-1


[Site "https://www.chess.com"]

[Event "Titled Tuesday Blitz August 1 Late 2023"]
[White "Kirillov, Dmitry"]
[Black "Vovk, Orest"]
[WhiteFideId "34180572"]
[BlackFideId "14113490"]
[WhiteElo "2433"]
[BlackElo "2518"]
[Result "0-1"]
[Round "9"]
[TimeControl "180+1"]
[Date "2023.08.01"]
[WhiteClock "0:00:54"]
[BlackClock "0:01:15"]
[Board "66"]

1. d4 {[%clk 0:03:00]}  e5 {[%clk 0:02:52]} 2. dxe5 {[%clk 0:03:00]}  Nc6 {[%clk 0:02:51]} 3. Nf3 {[%clk 0:03:00]}  Qe7 {[%clk 0:02:51]} 4. Qd5 {[%clk 0:02:48]}  h6 {[%clk 0:02:46]} 5. c3 {[%clk 0:02:47]}  g5 {[%clk 0:02:43]} 6. h3 {[%clk 0:02:45]}  Bg7 {[%clk 0:02:44]} 7. Na3 {[%clk 0:02:37]}  Nxe5 {[%clk 0:02:31]} 8. Nxe5 {[%clk 0:02:32]}  Qxe5 {[%clk 0:02:29]} 9. Qxe5+ {[%clk 0:02:32]}  Bxe5 {[%clk 0:02:30]} 10. Nc4 {[%clk 0:02:32]}  Bg7 {[%clk 0:02:29]} 11. g3 {[%clk 0:02:30]}  d5 {[%clk 0:02:29]} 12. Ne3 {[%clk 0:02:27]}  Ne7 {[%clk 0:02:29]} 13. Bg2 {[%clk 0:02:27]}  Be6 {[%clk 0:02:29]} 14. O-O {[%clk 0:02:27]}  O-O-O {[%clk 0:02:30]} 15. Nc2 {[%clk 0:02:24]}  Nf5 {[%clk 0:02:25]} 16. e3 {[%clk 0:02:22]}  Nd6 {[%clk 0:02:21]} 17. Nd4 {[%clk 0:02:21]}  Ne4 {[%clk 0:02:18]} 18. Nxe6 {[%clk 0:02:16]}  fxe6 {[%clk 0:02:17]} 19. Rb1 {[%clk 0:02:03]}  Rhf8 {[%clk 0:02:05]} 20. c4 {[%clk 0:01:46]}  c6 {[%clk 0:01:58]} 21. b3 {[%clk 0:01:41]}  Nc3 {[%clk 0:01:53]} 22. Rb2 {[%clk 0:01:35]}  dxc4 {[%clk 0:01:49]} 23. bxc4 {[%clk 0:01:36]}  Rd3 {[%clk 0:01:39]} 24. Rc2 {[%clk 0:01:35]}  Na4 {[%clk 0:01:28]} 25. Be4 {[%clk 0:01:29]}  Rc3 {[%clk 0:01:17]} 26. Rxc3 {[%clk 0:01:27]}  Nxc3 {[%clk 0:01:17]} 27. Kg2 {[%clk 0:00:54]}  Nxe4 {[%clk 0:01:15]} 0-1


[Site "https://www.chess.com"]